Cogmind - Beta 9.6 @@@ ROGUE MODE // 2020.05.14 @ 02:43:23 // Winter2019/RPGLIKE Player: Judas Result: Smashed by cave-in Performance ------------- Evolutions (1) 500 Regions Visited (4) 800 Robots Destroyed (18) 90 Value Destroyed (303) 303 Prototype IDs (0) 0 Alien Tech Used (0) 0 Bonus (60) 60 TOTAL SCORE: 1753 Bonus ------- Follower Combat Kills 60 Cogmind --------- Core Integrity 0/950 Matter 205/300 Energy 250/250 System Corruption 0% Temperature Cool (0) Movement Walking (120) Location -9/Mines Parts ------- > --- POWER (1) -------- Ion Engine > --- PROPULSION (2) --- Aluminum Leg Aluminum Leg > --- UTILITY (2) ------ Advanced Targeting Computer > --- WEAPON (3) ------- Heavy Assault Rifle Heavy Assault Rifle Missile Launcher > --- INVENTORY (1) ---- Heavy EM Pulse Gun Peak State ------------ > --- POWER ------------ Ion Engine > --- PROPULSION ------- Aluminum Leg Aluminum Leg > --- UTILITY ---------- Advanced Targeting Computer > --- WEAPON ----------- Heavy Assault Rifle Heavy Assault Rifle Missile Launcher > --- INVENTORY -------- Heavy EM Pulse Gun [Rating: 13] Favorites ----------- Power Ion Engine Engine Ion Engine Propulsion Aluminum Leg Leg Aluminum Leg Utility Weapon Shielding Device Improved Heat Sink Processor Advanced Targeting Computer Protection Weapon Shielding Weapon Assault Rifle Energy Gun Medium Laser Ballistic Gun Assault Rifle Launcher Missile Launcher Build | -11 -10 -10 -9 -9 ------- Run | Scr Mat Min Mat Min Slots Evolved 4 | 4 . . . . Power . | . . . . . Propulsion 1 | 1 . . . . Utility 1 | 1 . . . . Weapon 2 | 2 . . . . Parts Attached 12 | 3 3 . 4 2 Power . | . . . . . Engine . | . . . . . Core . | . . . . . Reactor . | . . . . . Propulsion 1 | 1 . . . . Treads . | . . . . . Leg 1 | 1 . . . . Wheel . | . . . . . Hover . | . . . . . Flight . | . . . . . Utility 4 | . 3 . 1 . Device 1 | . 1 . . . Storage . | . . . . . Processor 1 | . . . 1 . Hackware . | . . . . . Protection 2 | . 2 . . . Artifact . | . . . . . Weapon 7 | 2 . . 3 2 Energy Gun 2 | 1 . . 1 . Energy Cannon . | . . . . . Ballistic Gun 4 | 1 . . 2 1 Ballistic Cannon . | . . . . . Launcher 1 | . . . . 1 Special Weapon . | . . . . . Impact Weapon . | . . . . . Slashing Weapon . | . . . . . Piercing Weapon . | . . . . . Special Melee Weapon . | . . . . . Unidentified Prototypes . | . . . . . Parts Lost 1 | . . . 1 . Power . | . . . . . Propulsion . | . . . . . Utility 1 | . . . 1 . Weapon . | . . . . . Highest Loss Streak 1 | . . . 1 . Average Slot Usage (%) 96 | . 91 100 97 84 Engine 12 | . 12 12 12 12 Leg 25 | . 25 25 25 25 Device 6 | . 4 12 . . Processor 4 | . . . 11 12 Protection 10 | . 12 12 9 . Energy Gun 11 | . 12 12 12 7 Ballistic Gun 24 | . 25 25 25 22 Naked Turns . | . . . . . Heaviest Build 17 | 10 12 12 14 17 Greatest Support 20 | 20 20 20 20 20 Greatest Overweight (x) . | . . . . . Average Overweight (x) . | . . . . . Largest Inventory Capacity 1 | 1 1 1 1 1 Average Capacity 1 | 1 1 1 1 1 Most Carried 1 | . . . 1 1 Average Carried . | . . . . 1 Final Capacity 1 | 1 1 1 1 1 Final Carried 1 | . . . 1 1 Class Distribution -------------------- 100% | Gunner Dominant Class ---------------- Gunner | -10/Materials Gunner | -10/Mines Gunner | -9/Materials Gunner | -9/Mines Resources | -11 -10 -10 -9 -9 ----------- Run | Scr Mat Min Mat Min Matter Collected 407 | 200 86 . 121 . Remotely . | . . . . . Salvage Created 591 | . 235 . 330 26 Parts 21 | . 2 . 19 . Haulers Intercepted . | . . . . . Recyclers Shooed 2 | . . . 2 . Parts Field Recycled . | . . . . . Retrieved Matter . | . . . . . Parts Self-Destructed . | . . . . . Prevented . | . . . . . Kills | -11 -10 -10 -9 -9 ------- Run | Scr Mat Min Mat Min Combat Hostiles Destroyed 17 | . 2 . 5 10 Guns 8 | . 2 . 5 1 AOE 9 | . . . . 9 Classes Destroyed 4 | . 2 . 1 1 Recycler 1 | . 1 . . . Grunt 4 | . 2 . 2 . Sentry 3 | . . . 3 . Assembled 10 | . . . . 10 Best Kill Streak 10 | . 3 . 4 10 Combat Bots Only 10 | . 2 . 4 10 Max Kills in Single Turn 5 | . 1 . 1 5 Gunslinging . | . . . . . Exploded 5 | . . . . 5 Melee . | . . . . . Uniques/NPCs Destroyed . | . . . . . Combat | -11 -10 -10 -9 -9 -------- Run | Scr Mat Min Mat Min Damage Taken 1565 | . 171 14 401 979 Core 1215 | . 124 8 265 818 Absorbed by Shields . | . . . . . Redirected to Core 900 | . 93 8 216 583 Core Remaining (%) 99 | 100 . 98 . . Volleys Fired 32 | . 10 1 17 4 Largest 3 | . 3 3 3 3 Hottest 91 | . 90 90 91 91 Shots Fired 92 | . 30 3 51 8 Gun 90 | . 30 3 51 6 Cannon . | . . . . . Launcher 2 | . . . . 2 Special . | . . . . . Kinetic 61 | . 20 2 34 5 Thermal 11 | . 10 1 . . Explosive 2 | . . . . 2 Electromagnetic 18 | . . . 17 1 Robot Hit Streak 11 | . 6 . 11 6 Robot Miss Streak 4 | . 4 3 2 1 Penetration Max . | . . . . . Secondary Targets . | . . . . . Shots Hit Robots 60 | . 18 . 36 6 Core Hits 32 | . 7 1 9 15 Critical Hits 1 | . . . . 1 Critical Kills . | . . . . . Critical Parts Destroyed 1 | . . . . 1 Melee Attacks . | . . . . . Impact . | . . . . . Slashing . | . . . . . Piercing . | . . . . . Sneak Attacks . | . . . . . Combat Hostiles . | . . . . . Follow-up Attacks . | . . . . . Damage Inflicted 1420 | . 192 13 575 640 Guns 836 | . 192 13 571 60 Cannons . | . . . . . Explosions 580 | . . . . 580 Melee . | . . . . . Ramming 4 | . . . 4 . Kinetic 509 | . 114 13 322 60 Thermal 78 | . 78 . . . Explosive 580 | . . . . 580 Electromagnetic 249 | . . . 249 . Impact . | . . . . . Slashing . | . . . . . Piercing . | . . . . . Highest Corruption . | . . . . . Average Corruption . | . . . . . Corruption Purged . | . . . . . Overload Shots . | . . . . . Overflow Damage 50 | . . . . 50 Projectiles . | . . . . . Explosions 50 | . . . . 50 Melee . | . . . . . Knockbacks . | . . . . . Impact . | . . . . . Kinetic . | . . . . . Secondary . | . . . . . Self-Inflicted Damage 111 | . . . . 111 Shots 2 | . . . . 2 Rammed . | . . . . . Targets Rammed 2 | . . . 2 . Kicked 2 | . . . 2 . Crushed . | . . . . . Highest Temperature 336 | . 336 5 244 30 Average Temperature 133 | . 189 3 111 17 Received Heat Transfer 282 | . 102 9 171 . Siege Activations . | . . . . . Robots Corrupted . | . . . . . Combat Hostiles . | . . . . . Parts Fried 1 | . . . 1 . Impact Corruptions . | . . . . . Robots Melted . | . . . . . Combat Hostiles . | . . . . . Parts Melted . | . . . . . Heat Transferred 222 | . 222 . . . Parts Sabotaged . | . . . . . Parts Stolen . | . . . . . Parts Stripped . | . . . . . Power Chain Reactions . | . . . . . Missiles Intercepted . | . . . . . Alert | -11 -10 -10 -9 -9 ------- Run | Scr Mat Min Mat Min Peak Influence 186 | . 55 77 186 72 Average Influence 47 | . 27 26 78 72 Maximum Alert Level . | . . . . . Low Security (%) 100 | 100 100 100 100 100 Level 1 . | . . . . . Level 2 . | . . . . . Level 3 . | . . . . . Level 4 . | . . . . . Level 5 . | . . . . . High Security . | . . . . . Max Security . | . . . . . Squads Dispatched . | . . . . . Investigation . | . . . . . Extermination . | . . . . . Reinforcement . | . . . . . Assault . | . . . . . Garrison . | . . . . . Intercept . | . . . . . Construction Impeded . | . . . . . Haulers Reinforced . | . . . . . Stealth | -11 -10 -10 -9 -9 --------- Run | Scr Mat Min Mat Min Distress Signals 3 | . . . 3 . Communications Jammed . | . . . . . Distress Signals . | . . . . . Times Spotted 39 | . 3 2 12 22 Peak Tracking Total 16 | . 2 2 5 16 Tactical Retreats 2 | . . . . 2 Traps | -11 -10 -10 -9 -9 ------- Run | Scr Mat Min Mat Min Traps Triggered . | . . . . . Indirectly . | . . . . . Trap Hack Attempts . | . . . . . Triggered . | . . . . . Disarmed . | . . . . . Reprogrammed . | . . . . . Reused . | . . . . . Traps Extracted . | . . . . . Installed . | . . . . . Triggered . | . . . . . Machines | -11 -10 -10 -9 -9 ---------- Run | Scr Mat Min Mat Min Machines Disabled . | . . . . . Max in Single Turn . | . . . . . Machines Sabotaged . | . . . . . Garrisons Compromised . | . . . . . Overloaded Fab Kills . | . . . . . Fab Network Shutdowns . | . . . . . Hacking | -11 -10 -10 -9 -9 --------- Run | Scr Mat Min Mat Min Machines Accessed 2 | . . 1 1 . Terminals 2 | . . 1 1 . Fabricators . | . . . . . Repair Stations . | . . . . . Recycling Units . | . . . . . Scanalyzers . | . . . . . Garrison Access . | . . . . . Total Hacks 5 | . . 2 3 . Successful 3 | . . 2 1 . Failed 2 | . . . 2 . Catastrophic . | . . . . . Database Lockouts . | . . . . . Manual 6 | . . 3 3 . Terminals 5 | . . 2 3 . Fabricators . | . . . . . Repair Stations . | . . . . . Recycling Units . | . . . . . Scanalyzers . | . . . . . Garrison Access . | . . . . . Terminal Hacks 2 | . . 2 . . Robot Analysis 2 | . . 2 . . Fabricator Hacks . | . . . . . Repair Station Hacks . | . . . . . Recycling Unit Hacks . | . . . . . Scanalyzer . | . . . . . Garrison Access Hacks . | . . . . . Unauthorized Hacks 1 | . . . 1 . Terminals 1 | . . . 1 . Botnet 1 | . . . 1 . Fabricators . | . . . . . Repair Stations . | . . . . . Recycling Units . | . . . . . Scanalyzers . | . . . . . Garrison Access . | . . . . . Data Cores Recovered . | . . . . . Used . | . . . . . Hacking Detections . | . . . . . Full Trace Events . | . . . . . Feedback Events . | . . . . . Feedback Blocked . | . . . . . Robot Schematics Acquired . | . . . . . Robots Built . | . . . . . Matter . | . . . . . Time . | . . . . . Total Robot Build Rating . | . . . . . Part Schematics Acquired . | . . . . . Parts Built . | . . . . . Matter . | . . . . . Time . | . . . . . Total Part Build Rating . | . . . . . Parts Repaired . | . . . . . Time . | . . . . . Parts Recycled . | . . . . . Recycled Matter . | . . . . . Retrieved Matter . | . . . . . Retrieved Components . | . . . . . Parts Scanalyzed . | . . . . . Part Schematics Acquired . | . . . . . Parts Damaged . | . . . . . Bothacking | -11 -10 -10 -9 -9 ------------ Run | Scr Mat Min Mat Min Used RIF Installer . | . . . . . Robots Hacked . | . . . . . Non-combat . | . . . . . Combat . | . . . . . Robot Hacks Applied . | . . . . . Relay Couplers Released . | . . . . . Robots Rewired . | . . . . . Allies Hacked . | . . . . . Hacks Repelled . | . . . . . Allies | -11 -10 -10 -9 -9 -------- Run | Scr Mat Min Mat Min Total Allies 2 | . . 2 . . Largest Group 2 | . . 2 1 . Highest-Rated Group 46 | . . 46 15 . Highest-Rated Ally 31 | . . 31 15 . Total Orders . | . . . . . Ally Attacks 3 | . . 3 . . Total Damage 62 | . . 62 . . Kills 2 | . . 2 . . Allies Corrupted . | . . . . . Allies Melted . | . . . . . Intel | -11 -10 -10 -9 -9 ------- Run | Scr Mat Min Mat Min Robot Analysis Total 2 | . . 2 . . Derelict Logs Recovered . | . . . . . Drone Launches . | . . . . . Drone Recoveries . | . . . . . Exploration | -11 -10 -10 -9 -9 ------------- Run | Scr Mat Min Mat Min Turns Passed 774 | 11 119 320 273 51 Spaces Moved 502 | 6 70 254 142 30 Core . | . . . . . Treads . | . . . . . Legs 502 | 6 70 254 142 30 Wheels . | . . . . . Hover . | . . . . . Flight . | . . . . . Fastest Speed 120 | 120 120 120 120 120 Average Speed 120 | 120 120 120 120 120 Slowest Speed 120 | 120 120 120 120 120 Overloaded Moves . | . . . . . Propulsion Burnouts . | . . . . . Robots Hopped . | . . . . . Cave-ins Triggered 1 | . . . . 1 Exploration Rate (%) 24 | 2 22 57 20 19 Regions Visited 4 Branch Regions 2 Pre-discovered Areas . | . . . . . Known Exits Taken . | . . . . . Unknown Exits Taken 4 | 1 1 1 1 . Scrap Searched . | . . . . . Spaces Dug . | . . . . . Terrain Destroyed 11 | . . . . 11 Melee . | . . . . . Projectile . | . . . . . AOE 11 | . . . . 11 Actions | -11 -10 -10 -9 -9 --------- Run | Scr Mat Min Mat Min Total 601 | 8 83 267 206 37 Wait 39 | . . 7 32 . Move 498 | 5 69 253 141 30 Hop . | . . . . . Pick Up 1 | . . . 1 . Fast Attach 11 | 3 3 . 4 1 Attach . | . . . . . Detach . | . . . . . Swap 1 | . . . . 1 Drop 5 | . 1 . 4 . Fire 32 | . 10 1 17 4 Melee . | . . . . . Ram . | . . . . . Kick 2 | . . . 2 . Crush . | . . . . . Escape Stasis . | . . . . . Rewire . | . . . . . Trap . | . . . . . Miscellaneous 12 | . . 6 5 1 Route ------- -11/Scrapyard -10/Materials -10/Mines -9/Materials -9/Mines History --------- Turn | Location | Event 1 | -11/Scrapyard | Upgraded with Propulsion slot (x1) 1 | -11/Scrapyard | Upgraded with Utility slot (x1) 1 | -11/Scrapyard | Upgraded with Weapon slot (x2) 1 | -11/Scrapyard | Discovered new exit (range 1) 12 | -11/Scrapyard | Entered Materials 108 | -10/Materials | Discovered new exit (range 12) 131 | -10/Materials | Entered Mines 303 | -10/Mines | Build established: Gunner 433 | -10/Mines | Discovered new exit (range 4) 451 | -10/Mines | Entered Materials 451 | -9/Materials | Accompanied by 1 ally 453 | -9/Materials | Reached level 2 638 | -9/Materials | Reached level 3 707 | -9/Materials | Discovered new exit (range 11) 724 | -9/Materials | Entered Mines 725 | -9/Mines | Assembled infested the area 730 | -9/Mines | Assisted by a Guerilla fighting off Assembled 759 | -9/Mines | Core integrity fell below 50% 774 | -9/Mines | Core integrity fell below 20% 776 | -9/Mines | Crushed by falling debris 776 | -9/Mines | Smashed by cave-in Last Messages --------------- 00754_ Destroyed Asb. Hover Unit. 00754_ as-73176 destroyed. 00754_ as-74359 destroyed. 00754_ as-10348 destroyed. 00754_ as-74360 destroyed. 00754_ Destroyed Asb. Hover Unit. 00757_ Knocked back. 00758_ as-60184 destroyed. 00758_ Destroyed Asb. Maul. 00758_ as-24806 destroyed. 00758_ as-86934 destroyed. 00758_ Destroyed Asb. Hover Unit. 00758_ as-86432 destroyed. 00761_ as-44257 destroyed. 00764_ Acquired Hvy. Assault Rifle. 00768_ Used Protomatter to restore core integrity (+3, depleted) 00769_ D-53 Grenadier unfolds itself. 00771_ as-01656 destroyed. 00776_ The unstable cave ceiling collapses. 00776_ Crushed by falling debris. Map ----- +----------------------------------------------------+ | ?????????????????????????????????????????# ???? | | ?????????????????????????????????????????# ???? | | ?????????????????????????????????????????# ?? ? | | ?????????????????????????????????????????# ? | | ?????????????????????????????????????????# """ "" | | ?????????????????????????????????????????# """ "" | | ?????????????????????????????????????????# """ "" | | ?????????????????????????????????????????# | | ??????????????????????????????????####???# """ "" | | ?????????????????????????????????## ##??# """ "" | | ?????????????????????????????????# #### """ "" | | ?????????????????????????????????# | | ?????????????????????????????????# """*"" | | ????????????????????????????????## a ## """%"" | | ????????????????????????????#### # ### "" " | | ????????????????????????????# ##?# | | ????????????????????????##### ##??# | | ???????????????????????## #???# | | ??????????????????????## ##??# | | ??????????????????????# #??# | | ??????????????????????# #??####""""" | | ??????????????????????# ##?????? ### | | ??????????????????????# ####??????? ?? | | ??????????????????????# ####?????????? ?? | | ??????????????????????# #???????????? ? | | ??????????????????????# @ #????????????? ? | | ??????????????????????# % # #???????? "## | | ??????????????????????# dd #???????###? | | ??????????????????????# # # #?????????? | | ?????????????????????? ### % #?????????? | | ?????????????????????##???## ????????? | | ???????????????????????????# ???????? | | ???????????????????????????? ## # ???????? | | ????????????????????????????# #?####?## ????????? | | ????????????????????????????? #?????????????????? | | ?????????????????????????????###?????????????????? | | ?????????????????????????????????????????????????? | | ?????????????????????????????????????????????????? | | ?????????????????????????????????????????????????? | | ?????????????????????????????????????????????????? | | ?????????????????????????????????????????????????? | | ?????????????????????????????????????????????????? | | ?????????????????????????????????????????????????? | | ?????????????????????????????????????????????????? | | ?????????????????????????????????????????????????? | | ?????????????????????????????????????????????????? | | ?????????????????????????????????????????????????? | | ?????????????????????????????????????????????????? | | ?????????????????????????????????????????????????? | | ?????????????????????????????????????????????????? | +----------------------------------------------------+ Best States ------------- Heat Dissipation 39 Energy Generation 10 Energy Capacity 250 Matter Stores 300 Matter Capacity 300 Sight Range 18 Robot Scan Range 6 Terrain Scan Density 10 Weapon Shielding 33 Evasion (%) 40 Targeting Accuracy 8 Item Schematics ----------------- None Robot Schematics ------------------ None Fabricated ------------ Nothing Alien Tech Used ----------------- None Achievements -------------- None Challenges ------------ None RPGLIKE | -11 -10 -10 -9 -9 --------- Run | Scr Mat Min Mat Min Levels Raised 2 | . . . 2 . XP Earned 6769 | 3000 250 809 2210 500 XP Spent 4460 | 2550 . . . 1910 Upgrades 19 | 5 . . . 14 Propulsion Slot 1 | 1 . . . . Utility Slot 1 | 1 . . . . Weapon Slot 2 | 2 . . . . Core Integrity 7 | . . . . 7 Inventory Capacity 1 | 1 . . . . Sight Range 2 | . . . . 2 Sensor Range 3 | . . . . 3 Ranged Accuracy 2 | . . . . 2 Protomatter Created 47 | . . . 40 7 Integrity Restored 246 | . . 123 120 3 Core 246 | . . 123 120 3 Protomatter Decayed 29 | . . 29 . . Game ------ Seed CentriumMatterManipulator Manual? 0 Play Time 00:12:38 Cumulative 63.7 hours Start 2020.05.14 @ 02:32:54 End 2020.05.14 @ 02:43:23 Sessions 1 Manual Loads 0 Difficulty Rogue Special Mode Winter2019/RPGLIKE Game No. 117 Rogue 117 Adventurer 0 Explorer 0 Win Type - Total 0 Types 0/0/0/0/0/0/0 Lore% 32 Gallery% 44 Achievement% 32 Wizard Run 0 Options --------- ASCII 0 Keyboard 0 Movement Mouse Keybinds 0 Fullscreen 2 Font 18/SmallcapsGlow Map View 76x50 Tactical HUD 1 Map Filters NONE Filters NONE Steam 1 RUN: 98456809-2505-4de6-b9c2-782ad469796a